[Event "*** Titled Tuesday Blitz"]
[Site "Chess.com"]
[Date "2020.10.20"]
[Round "3"]
[White "davigator"]
[Black "sergeikim"]
[Result "0-1"]
[WhiteElo "2348"]
[BlackElo "2537"]
[TimeControl "180+1"]
[EndTime "10:30:09 PDT"]
[Termination "sergeikim won on time"]

1. e4 {[%clk 0:03:00.9]} 1... e5 {[%clk 0:02:59.5]} 2. Nf3 {[%clk 0:03:00.3]}
2... Nc6 {[%clk 0:02:59.3]} 3. Bb5 {[%clk 0:02:59.8]} 3... a6 {[%clk 0:02:59]}
4. Ba4 {[%clk 0:02:58.5]} 4... Nf6 {[%clk 0:02:58.7]} 5. O-O {[%clk 0:02:58]}
5... b5 {[%clk 0:02:58]} 6. Bb3 {[%clk 0:02:57.4]} 6... Bc5 {[%clk 0:02:58.7]}
7. c3 {[%clk 0:02:56.7]} 7... d6 {[%clk 0:02:58.6]} 8. d4 {[%clk 0:02:57]} 8...
Bb6 {[%clk 0:02:59]} 9. a4 {[%clk 0:02:57]} 9... Bb7 {[%clk 0:02:57.9]} 10. Re1
{[%clk 0:02:55.7]} 10... h6 {[%clk 0:02:56.8]} 11. Na3 {[%clk 0:02:53.7]} 11...
exd4 {[%clk 0:02:48.5]} 12. cxd4 {[%clk 0:02:52.1]} 12... b4 {[%clk 0:02:48.2]}
13. Nc4 {[%clk 0:02:51]} 13... O-O {[%clk 0:02:46]} 14. Bf4 {[%clk 0:02:37.4]}
14... Na5 {[%clk 0:02:40.8]} 15. Nxb6 {[%clk 0:02:34.4]} 15... cxb6 {[%clk
0:02:37.8]} 16. Bc2 {[%clk 0:02:34]} 16... b3 {[%clk 0:02:34.5]} 17. Bd3 {[%clk
0:02:33.2]} 17... Rc8 {[%clk 0:02:29.1]} 18. Bd2 {[%clk 0:02:21.9]} 18... Nc4
{[%clk 0:02:25.6]} 19. Bc3 {[%clk 0:02:21.6]} 19... Re8 {[%clk 0:02:21.5]} 20.
e5 {[%clk 0:02:20.8]} 20... Nd5 {[%clk 0:01:40.9]} 21. Bxc4 {[%clk 0:02:18.3]}
21... Nxc3 {[%clk 0:01:36]} 22. Qxb3 {[%clk 0:02:17.2]} 22... d5 {[%clk
0:01:32.6]} 23. Bd3 {[%clk 0:02:06.2]} 23... Ne4 {[%clk 0:01:29.2]} 24. Rad1
{[%clk 0:02:04.2]} 24... Re6 {[%clk 0:01:18.8]} 25. Nd2 {[%clk 0:02:02.9]} 25...
Nxd2 {[%clk 0:00:49.5]} 26. Rxd2 {[%clk 0:02:02.5]} 26... Rec6 {[%clk 0:00:48]}
27. Rdd1 {[%clk 0:02:00.5]} 27... Qe7 {[%clk 0:00:43.8]} 28. h3 {[%clk
0:01:56.4]} 28... Qc7 {[%clk 0:00:36.9]} 29. Qb4 {[%clk 0:01:30.1]} 29... Qd8
{[%clk 0:00:31.4]} 30. Bf5 {[%clk 0:01:23.6]} 30... R8c7 {[%clk 0:00:30.9]} 31.
e6 {[%clk 0:01:22.5]} 31... fxe6 {[%clk 0:00:30.6]} 32. Bxe6+ {[%clk 0:01:20.6]}
32... Kh8 {[%clk 0:00:30.2]} 33. Bg4 {[%clk 0:01:18.8]} 33... Rf6 {[%clk
0:00:24.8]} 34. Bh5 {[%clk 0:01:17.4]} 34... Rf8 {[%clk 0:00:22.2]} 35. Re2
{[%clk 0:01:13.2]} 35... Rd7 {[%clk 0:00:20.2]} 36. Rde1 {[%clk 0:01:12.3]}
36... Qf6 {[%clk 0:00:20.1]} 37. Bf3 {[%clk 0:01:02.5]} 37... Rdd8 {[%clk
0:00:19.6]} 38. Re6 {[%clk 0:01:02]} 38... Qf4 {[%clk 0:00:18.4]} 39. Qxb6
{[%clk 0:01:00.4]} 39... Bc8 {[%clk 0:00:18]} 40. R6e3 {[%clk 0:00:54.4]} 40...
Rd6 {[%clk 0:00:16]} 41. Qc5 {[%clk 0:00:53.6]} 41... Rg6 {[%clk 0:00:13.8]} 42.
Kf1 {[%clk 0:00:53]} 42... Bf5 {[%clk 0:00:11]} 43. Qxd5 {[%clk 0:00:48.9]}
43... Rgf6 {[%clk 0:00:10.6]} 44. Qe5 {[%clk 0:00:47.7]} 44... Qh4 {[%clk
0:00:10]} 45. Qg3 {[%clk 0:00:42.5]} 45... Qxd4 {[%clk 0:00:08.6]} 46. Kg1
{[%clk 0:00:41.8]} 46... Qxb2 {[%clk 0:00:07.8]} 47. Re8 {[%clk 0:00:34.8]}
47... Qb4 {[%clk 0:00:06.5]} 48. Rxf8+ {[%clk 0:00:34.2]} 48... Rxf8 {[%clk
0:00:05.6]} 49. Bc6 {[%clk 0:00:30.3]} 49... Qxe1+ {[%clk 0:00:05]} 50. Kh2
{[%clk 0:00:29.9]} 50... Qe7 {[%clk 0:00:05.7]} 51. f3 {[%clk 0:00:19.3]} 51...
Qf6 {[%clk 0:00:06.6]} 52. Bd5 {[%clk 0:00:17.7]} 52... Rd8 {[%clk 0:00:06]} 53.
Bc4 {[%clk 0:00:14.9]} 53... Qd6 {[%clk 0:00:06.4]} 54. f4 {[%clk 0:00:11.8]}
54... Qd4 {[%clk 0:00:06]} 55. Bxa6 {[%clk 0:00:11.5]} 55... Qb2 {[%clk
0:00:04.3]} 56. Bb5 {[%clk 0:00:08.7]} 56... Be4 {[%clk 0:00:04.2]} 57. Bf1
{[%clk 0:00:03.7]} 57... Qc1 {[%clk 0:00:02.8]} 58. Bb5 {[%clk 0:00:02]} 58...
Qd2 {[%clk 0:00:03.2]} 0-1

[Event "*** Titled Tuesday Blitz"]
[Site "Chess.com"]
[Date "2020.10.20"]
[Round "3"]
[White "GM_Levan_Pantsulaia"]
[Black "Fy_Rakotomaharo"]
[Result "1-0"]
[WhiteElo "2855"]
[BlackElo "2639"]
[TimeControl "180+1"]
[EndTime "10:30:10 PDT"]
[Termination "GM_Levan_Pantsulaia won by resignation"]

1. Nf3 {[%clk 0:03:00.9]} 1... Nf6 {[%clk 0:02:56.5]} 2. g3 {[%clk 0:03:01]}
2... e6 {[%clk 0:02:52.6]} 3. Bg2 {[%clk 0:03:00.6]} 3... d5 {[%clk 0:02:51.3]}
4. O-O {[%clk 0:03:00.2]} 4... Be7 {[%clk 0:02:51.9]} 5. c4 {[%clk 0:02:55.1]}
5... O-O {[%clk 0:02:51.4]} 6. b3 {[%clk 0:02:52.4]} 6... c6 {[%clk 0:02:39.7]}
7. d3 {[%clk 0:02:47.9]} 7... b6 {[%clk 0:02:38.4]} 8. Bb2 {[%clk 0:02:47.6]}
8... Bb7 {[%clk 0:02:38.9]} 9. Nbd2 {[%clk 0:02:45.5]} 9... Nbd7 {[%clk
0:02:38.8]} 10. e4 {[%clk 0:02:40.4]} 10... dxe4 {[%clk 0:02:32.5]} 11. dxe4
{[%clk 0:02:41.3]} 11... Nc5 {[%clk 0:02:30.5]} 12. e5 {[%clk 0:02:35.9]} 12...
Nfd7 {[%clk 0:02:25.4]} 13. Qe2 {[%clk 0:02:26.3]} 13... a5 {[%clk 0:02:22.1]}
14. Nd4 {[%clk 0:02:14.7]} 14... Qc7 {[%clk 0:02:20.6]} 15. f4 {[%clk
0:02:11.6]} 15... Rfd8 {[%clk 0:02:16.8]} 16. Rad1 {[%clk 0:02:10.7]} 16... Nf8
{[%clk 0:02:16.7]} 17. Ne4 {[%clk 0:02:04.8]} 17... Nxe4 {[%clk 0:02:11.6]} 18.
Bxe4 {[%clk 0:02:05.7]} 18... Bc5 {[%clk 0:02:09.8]} 19. a4 {[%clk 0:01:58.7]}
19... Bxd4+ {[%clk 0:01:55]} 20. Bxd4 {[%clk 0:01:58.7]} 20... c5 {[%clk
0:01:55.6]} 21. Bxb7 {[%clk 0:01:36.2]} 21... Qxb7 {[%clk 0:01:52.7]} 22. Bc3
{[%clk 0:01:35]} 22... Ng6 {[%clk 0:01:35.1]} 23. Rd6 {[%clk 0:01:27.4]} 23...
Rxd6 {[%clk 0:01:29.2]} 24. exd6 {[%clk 0:01:28.3]} 24... Rd8 {[%clk 0:01:29.3]}
25. Rd1 {[%clk 0:01:24.4]} 25... Qc6 {[%clk 0:01:28.1]} 26. Qd3 {[%clk
0:01:09.9]} 26... f6 {[%clk 0:01:04.1]} 27. h4 {[%clk 0:01:06.5]} 27... Kf7
{[%clk 0:00:39.7]} 28. h5 {[%clk 0:01:01.4]} 28... Ne7 {[%clk 0:00:39.7]} 29. g4
{[%clk 0:00:50.7]} 29... Nc8 {[%clk 0:00:23.8]} 30. Qxh7 {[%clk 0:00:42.8]}
30... Rxd6 {[%clk 0:00:24]} 31. Qg6+ {[%clk 0:00:34.3]} 31... Kf8 {[%clk
0:00:18.8]} 32. Rf1 {[%clk 0:00:28.3]} 32... Ne7 {[%clk 0:00:19.1]} 33. Qh7
{[%clk 0:00:25.2]} 33... Rd4 {[%clk 0:00:05.6]} 34. Bxd4 {[%clk 0:00:20.2]}
34... cxd4 {[%clk 0:00:06.5]} 35. h6 {[%clk 0:00:19.9]} 35... gxh6 {[%clk
0:00:06.2]} 36. Qxh6+ {[%clk 0:00:19.5]} 36... Kf7 {[%clk 0:00:06.6]} 37. g5
{[%clk 0:00:19.5]} 37... f5 {[%clk 0:00:03.5]} 38. Qf6+ {[%clk 0:00:18.4]} 38...
Ke8 {[%clk 0:00:03.8]} 39. g6 {[%clk 0:00:14.9]} 39... Qe4 {[%clk 0:00:03.9]}
40. Qf7+ {[%clk 0:00:12.4]} 40... Kd7 {[%clk 0:00:03.6]} 41. g7 {[%clk
0:00:12.8]} 41... Qe3+ {[%clk 0:00:04]} 42. Rf2 {[%clk 0:00:12.7]} 42... Qe1+
{[%clk 0:00:03.2]} 43. Kg2 {[%clk 0:00:12.6]} 43... Qe4+ {[%clk 0:00:03.5]} 44.
Kh2 {[%clk 0:00:11]} 44... Qa8 {[%clk 0:00:03.1]} 45. Rg2 {[%clk 0:00:09]} 45...
Qg8 {[%clk 0:00:02.6]} 46. Qxg8 {[%clk 0:00:09.2]} 46... Nxg8 {[%clk 0:00:03.5]}
47. Rd2 {[%clk 0:00:09.8]} 47... Ke7 {[%clk 0:00:03.6]} 48. Rxd4 {[%clk
0:00:09.9]} 48... Nf6 {[%clk 0:00:03.7]} 49. Kg2 {[%clk 0:00:08.1]} 49... Kf7
{[%clk 0:00:04.1]} 50. Rd6 {[%clk 0:00:07.3]} 50... Nh5 {[%clk 0:00:03.6]} 51.
Kf3 {[%clk 0:00:05.7]} 51... Nxg7 {[%clk 0:00:02.3]} 52. Rxb6 {[%clk 0:00:06.1]}
52... Ne8 {[%clk 0:00:02.7]} 53. c5 {[%clk 0:00:05.6]} 53... Ke7 {[%clk
0:00:03.2]} 54. Rb5 {[%clk 0:00:05.2]} 54... Nc7 {[%clk 0:00:03]} 55. Rxa5
{[%clk 0:00:06.1]} 55... Nd5 {[%clk 0:00:03.6]} 56. Rb5 {[%clk 0:00:05.8]} 56...
Kd7 {[%clk 0:00:04.5]} 57. a5 {[%clk 0:00:06.1]} 57... Kc6 {[%clk 0:00:05.4]}
58. Rb8 {[%clk 0:00:05.9]} 58... Kxc5 {[%clk 0:00:05.4]} 59. a6 {[%clk
0:00:06.3]} 59... Nc7 {[%clk 0:00:05.1]} 60. a7 {[%clk 0:00:07.2]} 60... e5
{[%clk 0:00:05.1]} 61. Rc8 {[%clk 0:00:07]} 61... e4+ {[%clk 0:00:06]} 62. Ke3
{[%clk 0:00:07.3]} 62... Kb6 {[%clk 0:00:06.9]} 63. Rxc7 {[%clk 0:00:07.5]} 1-0

[Event "*** Titled Tuesday Blitz"]
[Site "Chess.com"]
[Date "2020.10.20"]
[Round "3"]
[White "Chesstrainer1"]
[Black "MarkoPe"]
[Result "1-0"]
[WhiteElo "2389"]
[BlackElo "2135"]
[TimeControl "180+1"]
[EndTime "10:30:17 PDT"]
[Termination "Chesstrainer1 won on time"]

1. Nf3 {[%clk 0:03:00.9]} 1... d5 {[%clk 0:02:50.1]} 2. g3 {[%clk 0:03:00.3]}
2... g6 {[%clk 0:02:46.4]} 3. Bg2 {[%clk 0:02:58.9]} 3... Bg7 {[%clk 0:02:44.9]}
4. O-O {[%clk 0:02:59.8]} 4... e5 {[%clk 0:02:44.9]} 5. d3 {[%clk 0:03:00.1]}
5... Ne7 {[%clk 0:02:43.7]} 6. e4 {[%clk 0:02:59.5]} 6... O-O {[%clk 0:02:43.1]}
7. exd5 {[%clk 0:02:59.4]} 7... Nxd5 {[%clk 0:02:44]} 8. Re1 {[%clk 0:02:59.2]}
8... Nc6 {[%clk 0:02:44.2]} 9. Nc3 {[%clk 0:02:58.8]} 9... Nxc3 {[%clk
0:02:41.1]} 10. bxc3 {[%clk 0:02:59.7]} 10... Bd7 {[%clk 0:02:13.1]} 11. Rb1
{[%clk 0:02:51.3]} 11... b6 {[%clk 0:02:12.9]} 12. d4 {[%clk 0:02:45.1]} 12...
exd4 {[%clk 0:02:08.8]} 13. cxd4 {[%clk 0:02:45.3]} 13... Rb8 {[%clk 0:02:04.8]}
14. Bg5 {[%clk 0:02:29.7]} 14... Qc8 {[%clk 0:01:59.6]} 15. d5 {[%clk
0:02:25.8]} 15... Na5 {[%clk 0:01:56.8]} 16. Nd4 {[%clk 0:02:06.2]} 16... Nc4
{[%clk 0:01:49.5]} 17. Qe2 {[%clk 0:01:44.2]} 17... Nd6 {[%clk 0:00:56.2]} 18.
Ne6 {[%clk 0:01:09.5]} 18... fxe6 {[%clk 0:00:31.9]} 19. dxe6 {[%clk 0:01:10.4]}
19... Be8 {[%clk 0:00:22.1]} 20. e7 {[%clk 0:01:00.8]} 20... Rf5 {[%clk
0:00:21.1]} 21. Bh3 {[%clk 0:00:57.3]} 21... Bc6 {[%clk 0:00:13.4]} 22. Rbd1
{[%clk 0:00:52.8]} 22... Qd7 {[%clk 0:00:09.5]} 23. Bf4 {[%clk 0:00:42.2]} 23...
Re8 {[%clk 0:00:09.1]} 24. Bxd6 {[%clk 0:00:35.4]} 24... cxd6 {[%clk 0:00:08.8]}
25. Qc4+ {[%clk 0:00:34.9]} 25... d5 {[%clk 0:00:08]} 26. Qe2 {[%clk 0:00:25.9]}
26... Bf6 {[%clk 0:00:06.8]} 27. Qa6 {[%clk 0:00:21.2]} 27... Rxe7 {[%clk
0:00:06.1]} 28. Rxe7 {[%clk 0:00:19.1]} 28... Qxe7 {[%clk 0:00:06.4]} 29. Qc8+
{[%clk 0:00:18]} 29... Qe8 {[%clk 0:00:06.3]} 30. Bxf5 {[%clk 0:00:17.3]} 30...
gxf5 {[%clk 0:00:06.6]} 31. Qxf5 {[%clk 0:00:17.4]} 31... Qe5 {[%clk 0:00:05.6]}
32. Qc8+ {[%clk 0:00:16]} 32... Be8 {[%clk 0:00:05.4]} 33. Qg4+ {[%clk
0:00:15.2]} 33... Bg6 {[%clk 0:00:04.7]} 34. Qc8+ {[%clk 0:00:14.5]} 34... Kg7
{[%clk 0:00:04.4]} 35. Qd7+ {[%clk 0:00:14]} 35... Kh6 {[%clk 0:00:03.4]} 36.
Rxd5 {[%clk 0:00:11.2]} 36... Qe1+ {[%clk 0:00:01.8]} 37. Kg2 {[%clk 0:00:11.1]}
37... Be4+ {[%clk 0:00:01.9]} 38. Kh3 {[%clk 0:00:11.4]} 38... Bxd5 {[%clk
0:00:02.2]} 39. Qxd5 {[%clk 0:00:10.9]} 39... Kg7 {[%clk 0:00:02.3]} 40. Qd7+
{[%clk 0:00:10.1]} 40... Qe7 {[%clk 0:00:03.2]} 41. Qg4+ {[%clk 0:00:07.8]}
41... Kf7 {[%clk 0:00:02.9]} 42. f4 {[%clk 0:00:07.2]} 42... Qe6 {[%clk
0:00:02.8]} 43. f5 {[%clk 0:00:07.6]} 43... Qe5 {[%clk 0:00:03.1]} 44. Qh5+
{[%clk 0:00:07.9]} 44... Kg7 {[%clk 0:00:03.3]} 45. Qg4+ {[%clk 0:00:06.8]}
45... Kf7 {[%clk 0:00:03.1]} 46. c4 {[%clk 0:00:06.1]} 46... Ke7 {[%clk
0:00:02.7]} 47. Qh5 {[%clk 0:00:05.9]} 47... Kd6 {[%clk 0:00:02.5]} 48. Qxh7
{[%clk 0:00:05.5]} 48... Kc5 {[%clk 0:00:03.4]} 49. Qg6 {[%clk 0:00:03.8]} 49...
Kxc4 {[%clk 0:00:03.1]} 50. Qg4+ {[%clk 0:00:04.1]} 50... Kc5 {[%clk 0:00:02.9]}
51. a4 {[%clk 0:00:05]} 51... a5 {[%clk 0:00:02.7]} 52. Qf3 {[%clk 0:00:03.8]}
52... b5 {[%clk 0:00:03.1]} 53. axb5 {[%clk 0:00:02.7]} 53... Kxb5 {[%clk
0:00:04]} 54. Qd3+ {[%clk 0:00:02.5]} 54... Kc5 {[%clk 0:00:04]} 55. Kg4 {[%clk
0:00:03.4]} 55... Kb4 {[%clk 0:00:03.9]} 56. Qb1+ {[%clk 0:00:03.1]} 56... Kc5
{[%clk 0:00:03.7]} 57. Qc2+ {[%clk 0:00:03.1]} 57... Kb6 {[%clk 0:00:03.7]} 58.
Kh5 {[%clk 0:00:03.4]} 58... a4 {[%clk 0:00:03.6]} 59. Kg6 {[%clk 0:00:03.6]}
59... a3 {[%clk 0:00:03.1]} 60. Qb3+ {[%clk 0:00:03.9]} 60... Kc7 {[%clk
0:00:01.3]} 61. Qxa3 {[%clk 0:00:04.5]} 1-0

[Event "*** Titled Tuesday Blitz"]
[Site "Chess.com"]
[Date "2020.10.20"]
[Round "3"]
[White "Fins0905"]
[Black "Egorov_Pavel"]
[Result "1/2-1/2"]
[WhiteElo "2630"]
[BlackElo "2410"]
[TimeControl "180+1"]
[EndTime "10:30:20 PDT"]
[Termination "Game drawn by repetition"]

1. d4 {[%clk 0:03:00.9]} 1... Nf6 {[%clk 0:03:00.9]} 2. Nf3 {[%clk 0:02:59.9]}
2... g6 {[%clk 0:02:59.9]} 3. Nc3 {[%clk 0:02:58.8]} 3... d5 {[%clk 0:02:59.7]}
4. Bf4 {[%clk 0:02:56.6]} 4... Bg7 {[%clk 0:03:00.1]} 5. Qd2 {[%clk 0:02:56.4]}
5... c5 {[%clk 0:02:59.3]} 6. e3 {[%clk 0:02:47]} 6... O-O {[%clk 0:02:59]} 7.
Be2 {[%clk 0:02:43.2]} 7... Nc6 {[%clk 0:02:58.6]} 8. h3 {[%clk 0:02:36.3]} 8...
Ne4 {[%clk 0:02:58.7]} 9. Nxe4 {[%clk 0:02:31.2]} 9... dxe4 {[%clk 0:02:59.6]}
10. Ne5 {[%clk 0:02:31.7]} 10... cxd4 {[%clk 0:02:57.5]} 11. Nxc6 {[%clk
0:02:07.8]} 11... bxc6 {[%clk 0:02:50.5]} 12. O-O {[%clk 0:02:01.2]} 12... dxe3
{[%clk 0:02:40.2]} 13. Qxe3 {[%clk 0:02:00.5]} 13... Bxb2 {[%clk 0:02:28.8]} 14.
Rad1 {[%clk 0:01:58.9]} 14... Qb6 {[%clk 0:02:23.8]} 15. Qxe4 {[%clk 0:01:57.4]}
15... Bf6 {[%clk 0:02:09.2]} 16. Bh6 {[%clk 0:01:50.5]} 16... Bf5 {[%clk
0:02:04.9]} 17. Qf3 {[%clk 0:01:43.4]} 17... Rfd8 {[%clk 0:01:54.9]} 18. Bc4
{[%clk 0:01:33.8]} 18... Bxc2 {[%clk 0:01:44.8]} 19. Rc1 {[%clk 0:01:24.3]}
19... Ba4 {[%clk 0:01:11.8]} 20. g4 {[%clk 0:01:22.3]} 20... Bb5 {[%clk
0:01:12.2]} 21. Rb1 {[%clk 0:00:33.8]} 21... Qd4 {[%clk 0:00:50.6]} 22. Bxb5
{[%clk 0:00:24.2]} 22... cxb5 {[%clk 0:00:51.5]} 23. Rxb5 {[%clk 0:00:24.4]}
23... Qd3 {[%clk 0:00:44.4]} 24. Qxd3 {[%clk 0:00:17.8]} 24... Rxd3 {[%clk
0:00:45.3]} 25. Rfb1 {[%clk 0:00:18.1]} 25... Rad8 {[%clk 0:00:37.3]} 26. Rb8
{[%clk 0:00:15.1]} 26... Bg7 {[%clk 0:00:36.8]} 27. Be3 {[%clk 0:00:13.1]} 27...
Rd1+ {[%clk 0:00:25.9]} 28. Kg2 {[%clk 0:00:12.4]} 28... a6 {[%clk 0:00:17.6]}
29. Rxd8+ {[%clk 0:00:10.8]} 29... Rxd8 {[%clk 0:00:17.1]} 30. Rb7 {[%clk
0:00:11.3]} 30... Kf8 {[%clk 0:00:12.1]} 31. Ra7 {[%clk 0:00:10.9]} 31... Bd4
{[%clk 0:00:09.9]} 32. Bh6+ {[%clk 0:00:08.6]} 32... Bg7 {[%clk 0:00:06.5]} 33.
Bg5 {[%clk 0:00:07.9]} 33... Bf6 {[%clk 0:00:05.8]} 34. Bxf6 {[%clk 0:00:06.9]}
34... exf6 {[%clk 0:00:06.7]} 35. Rxa6 {[%clk 0:00:07.5]} 35... Kg7 {[%clk
0:00:06.7]} 36. a4 {[%clk 0:00:07.9]} 36... Rd2 {[%clk 0:00:06.6]} 37. Ra7
{[%clk 0:00:07.5]} 37... Ra2 {[%clk 0:00:07.2]} 38. a5 {[%clk 0:00:07.5]} 38...
h6 {[%clk 0:00:07.7]} 39. a6 {[%clk 0:00:07.1]} 39... Ra3 {[%clk 0:00:08]} 40.
Ra8 {[%clk 0:00:06.4]} 40... Kh7 {[%clk 0:00:06]} 41. f3 {[%clk 0:00:06.5]}
41... Kg7 {[%clk 0:00:05.6]} 42. Kg3 {[%clk 0:00:06.8]} 42... g5 {[%clk
0:00:04.9]} 43. Kg2 {[%clk 0:00:06.4]} 43... Kh7 {[%clk 0:00:05.4]} 44. Kf2
{[%clk 0:00:06.4]} 44... Kg7 {[%clk 0:00:06]} 45. Ke2 {[%clk 0:00:06.9]} 45...
Kh7 {[%clk 0:00:04.5]} 46. Kf2 {[%clk 0:00:06.8]} 46... Kg7 {[%clk 0:00:05]} 47.
Kg3 {[%clk 0:00:07]} 47... Kh7 {[%clk 0:00:05.4]} 48. h4 {[%clk 0:00:06.9]}
48... gxh4+ {[%clk 0:00:05]} 49. Kxh4 {[%clk 0:00:07.8]} 49... Rxf3 {[%clk
0:00:04.8]} 50. Rb8 {[%clk 0:00:07.8]} 50... Ra3 {[%clk 0:00:05]} 51. Rb6 {[%clk
0:00:08.1]} 51... Kg6 {[%clk 0:00:04.9]} 52. Rc6 {[%clk 0:00:07.9]} 52... Ra5
{[%clk 0:00:04]} 53. Rb6 {[%clk 0:00:06.7]} 53... Ra4 {[%clk 0:00:04.1]} 54. Kg3
{[%clk 0:00:06.4]} 54... Ra3+ {[%clk 0:00:04.4]} 55. Kf4 {[%clk 0:00:06.5]}
55... Ra4+ {[%clk 0:00:05.3]} 56. Kf3 {[%clk 0:00:06.9]} 56... Kg5 {[%clk
0:00:05.3]} 57. Rb5+ {[%clk 0:00:06.9]} 57... Kg6 {[%clk 0:00:06]} 58. Rb6
{[%clk 0:00:07]} 58... Kg7 {[%clk 0:00:04.8]} 59. Kg3 {[%clk 0:00:06.7]} 59...
Ra3+ {[%clk 0:00:04.3]} 60. Kf4 {[%clk 0:00:06.7]} 60... Kg6 {[%clk 0:00:04.7]}
61. Rc6 {[%clk 0:00:06]} 61... Ra1 {[%clk 0:00:04.6]} 62. Kf3 {[%clk 0:00:05.7]}
62... Rf1+ {[%clk 0:00:04.4]} 63. Kg3 {[%clk 0:00:05.8]} 63... Ra1 {[%clk
0:00:05.3]} 64. Kf3 {[%clk 0:00:05.8]} 64... Kg7 {[%clk 0:00:05.2]} 65. Kf4
{[%clk 0:00:05.6]} 65... Ra5 {[%clk 0:00:05]} 66. Rb6 {[%clk 0:00:03.4]} 66...
Kg6 {[%clk 0:00:04.8]} 67. Kf3 {[%clk 0:00:03.3]} 67... Ra4 {[%clk 0:00:04.8]}
68. Kg3 {[%clk 0:00:02.6]} 68... Kg5 {[%clk 0:00:04.2]} 69. Rb5+ {[%clk
0:00:02.6]} 69... Kg6 {[%clk 0:00:04.5]} 70. Rb6 {[%clk 0:00:03.5]} 1/2-1/2

[Event "*** Titled Tuesday Blitz"]
[Site "Chess.com"]
[Date "2020.10.20"]
[Round "3"]
[White "MITerryble"]
[Black "Markov_Mikhail"]
[Result "1/2-1/2"]
[WhiteElo "2894"]
[BlackElo "2679"]
[TimeControl "180+1"]
[EndTime "10:30:22 PDT"]
[Termination "Game drawn - insufficient material"]

1. e4 {[%clk 0:02:58.8]} 1... c5 {[%clk 0:02:59.5]} 2. Nf3 {[%clk 0:02:58.5]}
2... d6 {[%clk 0:02:59.9]} 3. Bb5+ {[%clk 0:02:58.2]} 3... Bd7 {[%clk
0:02:59.7]} 4. Bxd7+ {[%clk 0:02:58.2]} 4... Qxd7 {[%clk 0:03:00.6]} 5. O-O
{[%clk 0:02:58.4]} 5... Nf6 {[%clk 0:03:01]} 6. e5 {[%clk 0:02:56.7]} 6... dxe5
{[%clk 0:03:00.6]} 7. Nxe5 {[%clk 0:02:57.6]} 7... Qc7 {[%clk 0:02:56.6]} 8. d4
{[%clk 0:02:56.4]} 8... cxd4 {[%clk 0:02:56.1]} 9. Bf4 {[%clk 0:02:55.9]} 9...
Qb6 {[%clk 0:02:45.1]} 10. Nd2 {[%clk 0:02:52.9]} 10... Nc6 {[%clk 0:02:39.6]}
11. Ndc4 {[%clk 0:02:17.6]} 11... Qc5 {[%clk 0:02:36.4]} 12. Re1 {[%clk
0:02:12.5]} 12... e6 {[%clk 0:02:32.5]} 13. Qf3 {[%clk 0:01:33.7]} 13... Be7
{[%clk 0:02:16.8]} 14. Nxc6 {[%clk 0:01:19]} 14... Qxc6 {[%clk 0:02:08.6]} 15.
Qb3 {[%clk 0:00:59]} 15... b6 {[%clk 0:02:02.2]} 16. Rad1 {[%clk 0:00:56.2]}
16... Qd5 {[%clk 0:01:51.2]} 17. Be5 {[%clk 0:00:50.4]} 17... O-O {[%clk
0:01:41.7]} 18. Rxd4 {[%clk 0:00:49.9]} 18... Qc6 {[%clk 0:01:42.1]} 19. Red1
{[%clk 0:00:41.5]} 19... Rac8 {[%clk 0:01:37.5]} 20. Ne3 {[%clk 0:00:39.1]}
20... Rfd8 {[%clk 0:01:26.9]} 21. Rxd8+ {[%clk 0:00:37.8]} 21... Rxd8 {[%clk
0:01:26]} 22. Rxd8+ {[%clk 0:00:38.1]} 22... Bxd8 {[%clk 0:01:26.9]} 23. Qd3
{[%clk 0:00:36.9]} 23... Be7 {[%clk 0:01:25.7]} 24. h3 {[%clk 0:00:33.2]} 24...
h6 {[%clk 0:01:25.8]} 25. c4 {[%clk 0:00:30.3]} 25... Nd7 {[%clk 0:01:24.2]} 26.
Bd4 {[%clk 0:00:29.4]} 26... Bf6 {[%clk 0:01:23]} 27. Bxf6 {[%clk 0:00:27.4]}
27... Nxf6 {[%clk 0:01:23.9]} 28. Qd8+ {[%clk 0:00:24.7]} 28... Kh7 {[%clk
0:01:23.6]} 29. Qe7 {[%clk 0:00:21.3]} 29... Qd7 {[%clk 0:01:18.4]} 30. Qxd7
{[%clk 0:00:20.7]} 30... Nxd7 {[%clk 0:01:19.3]} 31. Kf1 {[%clk 0:00:19.2]}
31... f5 {[%clk 0:01:09.2]} 32. Ke2 {[%clk 0:00:19]} 32... Kg6 {[%clk
0:01:09.8]} 33. Nc2 {[%clk 0:00:18.5]} 33... Kf6 {[%clk 0:01:09.3]} 34. Nd4
{[%clk 0:00:17.9]} 34... a5 {[%clk 0:01:08.3]} 35. b3 {[%clk 0:00:17.3]} 35...
g5 {[%clk 0:01:08.3]} 36. Ke3 {[%clk 0:00:16.8]} 36... e5 {[%clk 0:01:08.2]} 37.
Nb5 {[%clk 0:00:16.6]} 37... Nc5 {[%clk 0:01:04.8]} 38. Nc3 {[%clk 0:00:13.6]}
38... f4+ {[%clk 0:01:00.2]} 39. Kf3 {[%clk 0:00:10.2]} 39... Kf5 {[%clk
0:00:59.9]} 40. g4+ {[%clk 0:00:09]} 40... Ke6 {[%clk 0:00:50.9]} 41. Ke2 {[%clk
0:00:05]} 41... e4 {[%clk 0:00:50.4]} 42. Nd5 {[%clk 0:00:05.1]} 42... Nd7
{[%clk 0:00:49.9]} 43. Kd2 {[%clk 0:00:05]} 43... Ke5 {[%clk 0:00:43.1]} 44. Nc3
{[%clk 0:00:05.3]} 44... Nc5 {[%clk 0:00:39]} 45. Ke2 {[%clk 0:00:05.2]} 45...
Ne6 {[%clk 0:00:37.3]} 46. Kd2 {[%clk 0:00:04.3]} 46... Nd4 {[%clk 0:00:37.3]}
47. Nd5 {[%clk 0:00:03.1]} 47... b5 {[%clk 0:00:36.7]} 48. Ne7 {[%clk
0:00:03.5]} 48... bxc4 {[%clk 0:00:34]} 49. bxc4 {[%clk 0:00:04.4]} 49... Kd6
{[%clk 0:00:31.1]} 50. Ng8 {[%clk 0:00:03.5]} 50... Nf3+ {[%clk 0:00:29.1]} 51.
Ke2 {[%clk 0:00:03.2]} 51... Ng1+ {[%clk 0:00:29.6]} 52. Kd2 {[%clk 0:00:03.2]}
52... Nxh3 {[%clk 0:00:29.7]} 53. Ke1 {[%clk 0:00:02.8]} 53... Ng1 {[%clk
0:00:27.3]} 54. Nxh6 {[%clk 0:00:02.6]} 54... Nf3+ {[%clk 0:00:27.8]} 55. Ke2
{[%clk 0:00:03.1]} 55... Ne5 {[%clk 0:00:28.2]} 56. Kd2 {[%clk 0:00:02.8]} 56...
Nxc4+ {[%clk 0:00:28.2]} 57. Kc3 {[%clk 0:00:03.7]} 57... Ne5 {[%clk 0:00:27.6]}
58. Kd4 {[%clk 0:00:03.9]} 58... Nd3 {[%clk 0:00:25.7]} 59. Kxe4 {[%clk
0:00:03.3]} 59... Nxf2+ {[%clk 0:00:25.9]} 60. Kf3 {[%clk 0:00:02.8]} 60... Nd3
{[%clk 0:00:25.9]} 61. Nf7+ {[%clk 0:00:03.2]} 61... Kd5 {[%clk 0:00:21]} 62.
Nxg5 {[%clk 0:00:04.1]} 62... Nb4 {[%clk 0:00:21.5]} 63. Kxf4 {[%clk 0:00:03.8]}
63... Nxa2 {[%clk 0:00:21.9]} 64. Ne4 {[%clk 0:00:04.2]} 64... Nb4 {[%clk
0:00:19.7]} 65. g5 {[%clk 0:00:04.3]} 65... Ke6 {[%clk 0:00:20]} 66. Nc3 {[%clk
0:00:04.1]} 66... Nd3+ {[%clk 0:00:17.7]} 67. Ke4 {[%clk 0:00:04.1]} 67... Nc5+
{[%clk 0:00:17.6]} 68. Kd4 {[%clk 0:00:05]} 68... Nd7 {[%clk 0:00:17.3]} 69. Kc4
{[%clk 0:00:05.1]} 69... Kf5 {[%clk 0:00:17.4]} 70. Kb5 {[%clk 0:00:05.5]} 70...
Kxg5 {[%clk 0:00:17.8]} 71. Kxa5 {[%clk 0:00:06]} 1/2-1/2